fUSD/lending_fUSD_20240521
["ID","MTS","AMOUNT","RATE_DAILY","PERIOD"]
[327659380,1716288648184,-2513.31,0.00033753,6]
[327659381,1716288648193,-962.86,0.00033753,6]
[327659382,1716288648202,-1613.43,0.00033753,6]
[327659383,1716288648211,-4183.36,0.00033753,6]
[327659384,1716288648220,-3308.8,0.00033753,6]
[327659385,1716288648231,-1858.64,0.00033753,6]
[327659386,1716288648240,-2329.12,0.00033753,6]
[327659387,1716288648249,-783.19,0.00033753,6]
[327659388,1716288648259,-5607.3,0.00033753,6]
[327659389,1716288648268,-3970.56,0.00033753,6]
[327659390,1716288648277,-976.88,0.00033753,6]
[327659391,1716288648286,-2607.05,0.00033753,6]
[327659392,1716288648296,-500.0,0.00033753,6]
[327659393,1716288648306,-2500.81,0.00033753,6]
[327659394,1716288648316,-3401.22,0.00033753,6]
[327659395,1716288648325,-1071.43,0.00033753,6]
[327659396,1716288648334,-1823.94,0.00033753,6]
[327659397,1716288648344,-1343.6,0.00033753,6]
[327659398,1716288648353,-1563.19,0.00033753,6]
[327659399,1716288648364,-150.36997774,0.00033753,6]
[327659400,1716288648373,-1772.42,0.00033753,6]
[327659401,1716288648383,-826.21,0.00033753,6]
[327659402,1716288648393,-1929.03,0.00033753,6]
[327659403,1716288648402,-1482.87,0.00033753,6]
[327659404,1716288648412,-617.31,0.00033863,6]
[327659405,1716288648421,-2513.31,0.00033863,6]
[327659406,1716288648431,-962.86,0.00033863,6]
[327659407,1716288648440,-1613.43,0.00033863,6]
[327659408,1716288648450,-4183.36,0.00033863,6]
[327659409,1716288648459,-3308.8,0.00033863,6]
[327659410,1716288648469,-1858.64,0.00033863,6]
[327659411,1716288648478,-2329.12,0.00033863,6]
[327659412,1716288648487,-783.19,0.00033863,6]
[327659413,1716288648497,-5607.3,0.00033863,6]
[327659414,1716288648506,-3970.56,0.00033863,6]
[327659415,1716288648516,-976.88,0.00033863,6]
[327659416,1716288648525,-2607.05,0.00033863,6]
[327659417,1716288648535,-500.0,0.00033863,6]
[327659418,1716288648544,-2500.81,0.00033863,6]
[327659419,1716288648553,-3401.22,0.00033863,6]
[327659420,1716288648563,-1071.43,0.00033863,6]
[327659421,1716288648572,-1823.94,0.00033863,6]
[327659422,1716288648581,-1343.6,0.00033863,6]
[327659423,1716288648590,-1563.19,0.00033863,6]
[327659424,1716288648599,-1772.42,0.00033863,6]
[327659425,1716288648608,-826.21,0.00033863,6]
[327659426,1716288648623,-1929.03,0.00033863,6]
[327659427,1716288648633,-1482.87,0.00033863,6]
[327659428,1716288648642,-208.0,0.0003388,2]
[327659429,1716288648651,-150.34933573,0.00033912,7]
[327659430,1716288648661,-155.38167806,0.00033926,7]
[327659431,1716288648670,-176.57,0.00033938,2]
[327659432,1716288648680,-150.66,0.00033962,2]
[327659433,1716288648689,-617.31,0.00033972,6]
[327659434,1716288648698,-2513.31,0.00033972,6]
[327659435,1716288648708,-962.86,0.00033972,6]
[327659436,1716288648717,-196.07012242,0.00033972,6]
[327659437,1716288649050,-1417.35987758,0.00033972,6]
[327659438,1716288649059,-4183.36,0.00033972,6]
[327659439,1716288649069,-1637.11324058,0.00033972,6]
[327659440,1716288649559,-601.7,0.00032876,6]
[327659441,1716288649569,-109.47,0.00032986,6]
[327659442,1716288649580,-492.23,0.00032986,6]
[327659443,1716288649589,-168.9349,0.00033095,6]
[327659444,1716288649600,-432.7651,0.00033095,6]
[327659445,1716288649609,-601.7,0.00033205,6]
[327659446,1716288649619,-601.7,0.00033315,6]
[327659447,1716288649628,-942.45182647,0.00033489,2]
[327659448,1716288649638,-1134.76,0.00033643,6]
[327659449,1716288649647,-1134.76,0.00033753,6]
[327659450,1716288649656,-1134.76,0.00033863,6]
[327659451,1716288649665,-1671.68675942,0.00033972,6]
[327659452,1716288649674,-1858.64,0.00033972,6]
[327659453,1716288649683,-2329.12,0.00033972,6]
[327659454,1716288649692,-783.19,0.00033972,6]
[327659455,1716288649701,-5607.3,0.00033972,6]
[327659456,1716288649711,-3970.56,0.00033972,6]
[327659457,1716288649720,-976.88,0.00033972,6]
[327659458,1716288649729,-2607.05,0.00033972,6]
[327659459,1716288649739,-500.0,0.00033972,6]
[327659460,1716288649748,-2500.81,0.00033972,6]
[327659461,1716288649757,-3401.22,0.00033972,6]
[327659462,1716288649766,-1071.43,0.00033972,6]
[327659463,1716288649775,-1823.94,0.00033972,6]
[327659464,1716288649784,-1343.6,0.00033972,6]
[327659465,1716288649793,-1563.19,0.00033972,6]
[327659466,1716288649803,-1772.42,0.00033972,6]
[327659467,1716288649812,-826.21,0.00033972,6]
[327659468,1716288649822,-1929.03,0.00033972,6]
[327659469,1716288649836,-1482.87,0.00033972,6]
[327659470,1716288649845,-1134.76,0.00033972,6]
[327659471,1716288649854,-1999.99999901,0.00034,3]
[327659472,1716288649864,-157.54126416,0.00034066,7]
[327659473,1716288649874,-150.66,0.00034072,2]
[327659474,1716288649884,-617.31,0.00034082,6]
[327659475,1716288649893,-2513.31,0.00034082,6]
[327659476,1716288649904,-962.86,0.00034082,6]
[327659477,1716288649915,-1613.43,0.00034082,6]
[327659478,1716288649925,-4183.36,0.00034082,6]
[327659479,1716288649935,-3308.8,0.00034082,6]
[327659480,1716288649944,-1858.64,0.00034082,6]
[327659481,1716288649953,-2329.12,0.00034082,6]
[327659482,1716288649962,-783.19,0.00034082,6]
[327659483,1716288649973,-5607.3,0.00034082,6]
[327659484,1716288649982,-3970.56,0.00034082,6]
[327659485,1716288649991,-976.88,0.00034082,6]
[327659486,1716288650001,-2607.05,0.00034082,6]
[327659487,1716288650010,-500.0,0.00034082,6]
[327659488,1716288650020,-2500.81,0.00034082,6]
[327659489,1716288650029,-3401.22,0.00034082,6]
[327659490,1716288650038,-1071.43,0.00034082,6]
[327659491,1716288650048,-1823.94,0.00034082,6]
[327659492,1716288650057,-1343.6,0.00034082,6]
[327659493,1716288650066,-1563.19,0.00034082,6]
[327659494,1716288650075,-1772.42,0.00034082,6]
[327659495,1716288650084,-826.21,0.00034082,6]
[327659496,1716288650094,-1929.03,0.00034082,6]
[327659497,1716288650103,-1482.87,0.00034082,6]
[327659498,1716288650113,-1134.76,0.00034082,6]
[327659499,1716288650122,-961.84,0.00034092,2]
[327659500,1716288650131,-157.67562508,0.00034144,7]
[327659501,1716288650140,-1000.0,0.0003415,2]
[327659502,1716288650149,-157.67562508,0.0003416,7]
[327659503,1716288650159,-150.66,0.00034181,2]
[327659504,1716288650168,-617.31,0.00034191,6]
[327659505,1716288650178,-2513.31,0.00034191,6]
[327659506,1716288650187,-962.86,0.00034191,6]
[327659507,1716288650196,-1613.43,0.00034191,6]
[327659508,1716288650206,-4183.36,0.00034191,6]
[327659509,1716288650215,-3308.8,0.00034191,6]
[327659510,1716288650225,-1858.64,0.00034191,6]
[327659511,1716288650234,-2329.12,0.00034191,6]
[327659512,1716288650243,-783.19,0.00034191,6]
[327659513,1716288650252,-5607.3,0.00034191,6]
[327659514,1716288650262,-3970.56,0.00034191,6]
[327659515,1716288650272,-976.88,0.00034191,6]
[327659516,1716288650282,-2607.05,0.00034191,6]
[327659517,1716288650292,-500.0,0.00034191,6]
[327659518,1716288650301,-2500.81,0.00034191,6]
[327659519,1716288650311,-3401.22,0.00034191,6]
[327659520,1716288650322,-1071.43,0.00034191,6]
[327659521,1716288650331,-1823.94,0.00034191,6]
[327659522,1716288650341,-1343.6,0.00034191,6]
[327659523,1716288650351,-1563.19,0.00034191,6]
[327659524,1716288650360,-1772.42,0.00034191,6]
[327659525,1716288650372,-826.21,0.00034191,6]
[327659526,1716288650381,-1929.03,0.00034191,6]
[327659527,1716288650391,-1482.87,0.00034191,6]
[327659528,1716288650400,-1134.76,0.00034191,6]
[327659529,1716288650409,-155.38167806,0.00034192,7]
[327659530,1716288650419,-150.66,0.00034291,2]
[327659531,1716288650428,-116239.65217557,0.00034301,19]
[327659532,1716288650438,-617.31,0.00034301,6]
[327659533,1716288650447,-2513.31,0.00034301,6]
[327659534,1716288650457,-962.86,0.00034301,6]
[327659535,1716288650466,-1613.43,0.00034301,6]
[327659536,1716288650475,-4183.36,0.00034301,6]
[327659537,1716288650484,-3308.8,0.00034301,6]
[327659538,1716288650494,-1858.64,0.00034301,6]
[327659539,1716288650504,-2329.12,0.00034301,6]
[327659540,1716288650513,-783.19,0.00034301,6]
[327659541,1716288650523,-5607.3,0.00034301,6]
[327659542,1716288650532,-3970.56,0.00034301,6]
[327659543,1716288650541,-976.88,0.00034301,6]
[327659544,1716288650551,-2607.05,0.00034301,6]
[327659545,1716288650561,-259.88,0.00034301,6]
[327659546,1716288650571,-2500.81,0.00034301,6]
[327659547,1716288650580,-2550.66434472,0.00034301,6]
[327659548,1716288650607,-601.7,0.00033424,6]
[327659549,1716288650618,-850.55565528,0.00034301,6]
[327659550,1716288650628,-1071.43,0.00034301,6]
[327659551,1716288650636,-1823.94,0.00034301,6]
[327659552,1716288650645,-1343.6,0.00034301,6]
[327659553,1716288650654,-1563.19,0.00034301,6]
[327659554,1716288650664,-1772.42,0.00034301,6]
[327659555,1716288650674,-826.21,0.00034301,6]
[327659556,1716288650683,-1929.03,0.00034301,6]
[327659557,1716288650692,-1482.87,0.00034301,6]
[327659558,1716288650702,-1134.76,0.00034301,6]
[327659559,1716288650711,-150.34933573,0.00034359,7]
[327659560,1716288650720,-151.46796663,0.00034375,7]
[327659561,1716288650729,-617.31,0.0003441,6]
[327659562,1716288650738,-2513.31,0.0003441,6]
[327659563,1716288650747,-962.86,0.0003441,6]
[327659564,1716288650756,-1613.43,0.0003441,6]
[327659565,1716288650765,-4183.36,0.0003441,6]
[327659566,1716288650775,-3308.8,0.0003441,6]
[327659567,1716288650784,-1858.64,0.0003441,6]
[327659568,1716288650793,-2329.12,0.0003441,6]
[327659569,1716288650802,-783.19,0.0003441,6]
[327659570,1716288650813,-5607.3,0.0003441,6]
[327659571,1716288650822,-3970.56,0.0003441,6]
[327659572,1716288650832,-976.88,0.0003441,6]
[327659573,1716288650842,-2607.05,0.0003441,6]
[327659574,1716288650853,-2500.81,0.0003441,6]
[327659575,1716288650863,-3401.22,0.0003441,6]
[327659576,1716288650873,-1071.43,0.0003441,6]
[327659577,1716288650884,-1823.94,0.0003441,6]
[327659578,1716288650893,-1343.6,0.0003441,6]
[327659579,1716288650903,-1563.19,0.0003441,6]
[327659580,1716288650913,-1772.42,0.0003441,6]
[327659581,1716288650923,-826.21,0.0003441,6]
[327659582,1716288650933,-1929.03,0.0003441,6]
[327659583,1716288650942,-1482.87,0.0003441,6]
[327659584,1716288650952,-1134.76,0.0003441,6]
[327659585,1716288650961,-226.83269201,0.00034423,7]
[327659586,1716288650971,-1167.25838025,0.00034467,2]
[327659587,1716288650981,-150.66,0.0003451,2]
[327659588,1716288650990,-617.31,0.0003452,6]
[327659589,1716288650999,-2513.31,0.0003452,6]
[327659590,1716288651009,-962.86,0.0003452,6]
[327659591,1716288651019,-1613.43,0.0003452,6]
[327659592,1716288651028,-4183.36,0.0003452,6]
[327659593,1716288651038,-3308.8,0.0003452,6]
[327659594,1716288651047,-1858.64,0.0003452,6]
[327659595,1716288651056,-2329.12,0.0003452,6]
[327659596,1716288651066,-783.19,0.0003452,6]
[327659597,1716288651075,-5607.3,0.0003452,6]
[327659598,1716288651084,-3970.56,0.0003452,6]
[327659599,1716288651094,-976.88,0.0003452,6]
[327659600,1716288651102,-2607.05,0.0003452,6]
[327659601,1716288651113,-2500.81,0.0003452,6]
[327659602,1716288651122,-3401.22,0.0003452,6]
[327659603,1716288651131,-1071.43,0.0003452,6]
[327659604,1716288651139,-1823.94,0.0003452,6]
[327659605,1716288651149,-1343.6,0.0003452,6]
[327659606,1716288651158,-1563.19,0.0003452,6]
[327659607,1716288651168,-1772.42,0.0003452,6]
[327659608,1716288651178,-826.21,0.0003452,6]
[327659609,1716288651187,-1929.03,0.0003452,6]
[327659610,1716288651197,-1482.87,0.0003452,6]
[327659611,1716288651206,-252.44625317,0.00034548,4]
[327659612,1716288651216,-154.1024266,0.00034583,7]
[327659613,1716288651225,-160.56921426,0.00034608,7]
[327659614,1716288651235,-150.66,0.0003462,2]
[327659615,1716288651244,-617.31,0.0003463,6]
[327659616,1716288651254,-2513.31,0.0003463,6]
[327659617,1716288651263,-962.86,0.0003463,6]
[327659618,1716288651272,-1613.43,0.0003463,6]
[327659619,1716288651282,-4183.36,0.0003463,6]
[327659620,1716288651291,-3308.8,0.0003463,6]
[327659621,1716288651300,-1858.64,0.0003463,6]
[327659622,1716288651309,-2329.12,0.0003463,6]
[327659623,1716288651319,-783.19,0.0003463,6]
[327659624,1716288651328,-5607.3,0.0003463,6]
[327659625,1716288651337,-3970.56,0.0003463,6]
[327659626,1716288651347,-976.88,0.0003463,6]
[327659627,1716288651356,-2607.05,0.0003463,6]
[327659628,1716288651367,-2500.81,0.0003463,6]
[327659629,1716288651376,-3401.22,0.0003463,6]
[327659630,1716288651386,-1071.43,0.0003463,6]
[327659631,1716288651396,-1823.94,0.0003463,6]
[327659632,1716288651405,-1343.6,0.0003463,6]
[327659633,1716288651415,-1563.19,0.0003463,6]
[327659634,1716288651425,-1772.42,0.0003463,6]
[327659635,1716288651434,-826.21,0.0003463,6]
[327659636,1716288651444,-1929.03,0.0003463,6]
[327659637,1716288651453,-1482.87,0.0003463,6]
[327659638,1716288651463,-152.19020746,0.00034633,7]
[327659639,1716288651473,-208.0,0.0003465,2]
[327659640,1716288651482,-163.42,0.00034685,2]
[327659641,1716288651491,-201.36,0.00034685,2]
[327659642,1716288651501,-150.0,0.00034685,2]
[327659643,1716288651510,-150.0,0.00034685,2]
[327659644,1716288651519,-678.94,0.00034685,2]
[327659645,1716288651529,-150.0,0.00034685,2]
[327659646,1716288651538,-150.0,0.00034685,2]
[327659647,1716288651547,-351.72,0.00034685,2]
[327659648,1716288651556,-155.0,0.000347,5]
[327659649,1716288651566,-155.0,0.00034727,4]
[327659650,1716288651575,-926.59377141,0.00034727,2]
[327659651,1716288651586,-150.66,0.00034729,2]
[327659652,1716288651596,-617.31,0.00034739,6]
[327659653,1716288651606,-2513.31,0.00034739,6]
[327659654,1716288651616,-962.86,0.00034739,6]
[327659655,1716288651626,-1613.43,0.00034739,6]
[327659656,1716288651636,-4183.36,0.00034739,6]
[327659657,1716288651645,-3308.8,0.00034739,6]
[327659658,1716288651654,-1858.64,0.00034739,6]
[327659659,1716288651664,-2329.12,0.00034739,6]
[327659660,1716288651673,-783.19,0.00034739,6]
[327659661,1716288651683,-5607.3,0.00034739,6]
[327659662,1716288651973,-3970.56,0.00034739,6]
[327659663,1716288651983,-976.88,0.00034739,6]
[327659664,1716288651993,-2607.05,0.00034739,6]
[327659665,1716288652003,-2500.81,0.00034739,6]
[327659666,1716288652012,-3401.22,0.00034739,6]
[327659667,1716288652022,-1071.43,0.00034739,6]
[327659668,1716288652031,-1823.94,0.00034739,6]
[327659669,1716288652041,-1343.6,0.00034739,6]
[327659670,1716288652051,-1563.19,0.00034739,6]
[327659671,1716288652060,-1772.42,0.00034739,6]
[327659672,1716288652070,-826.21,0.00034739,6]
[327659673,1716288652079,-1929.03,0.00034739,6]
[327659674,1716288652088,-1482.87,0.00034739,6]
[327659675,1716288652098,-150.34933573,0.0003476,7]
[327659676,1716288652107,-3859.1718,0.000348,2]
[327659677,1716288652117,-180.73324774,0.00034809,7]
[327659678,1716288652126,-150.66,0.00034839,2]
[327659679,1716288652135,-617.31,0.00034849,6]
[327659680,1716288652144,-2513.31,0.00034849,6]
[327659681,1716288652153,-962.86,0.00034849,6]
[327659682,1716288652163,-1613.43,0.00034849,6]
[327659683,1716288652172,-4183.36,0.00034849,6]
[327659684,1716288652181,-3308.8,0.00034849,6]
[327659685,1716288652191,-1858.64,0.00034849,6]
[327659686,1716288652200,-2329.12,0.00034849,6]
[327659687,1716288652210,-783.19,0.00034849,6]
[327659688,1716288652219,-5607.3,0.00034849,6]
[327659689,1716288652228,-3970.56,0.00034849,6]
[327659690,1716288652238,-976.88,0.00034849,6]
[327659691,1716288652247,-2607.05,0.00034849,6]
[327659692,1716288652256,-2500.81,0.00034849,6]
[327659693,1716288652266,-3401.22,0.00034849,6]
[327659694,1716288652276,-1071.43,0.00034849,6]
[327659695,1716288652286,-1823.94,0.00034849,6]
[327659696,1716288652295,-1343.6,0.00034849,6]
[327659697,1716288652306,-1563.19,0.00034849,6]
[327659698,1716288652319,-1772.42,0.00034849,6]
[327659699,1716288652330,-826.21,0.00034849,6]
[327659700,1716288652339,-1929.03,0.00034849,6]
[327659701,1716288652348,-1482.87,0.00034849,6]
[327659702,1716288652358,-180.73324764,0.00034863,7]
[327659703,1716288652368,-573.72051391,0.00034896,7]
[327659704,1716288652377,-397227.59622125,0.00034896,5]
[327659705,1716288662748,-35961.40712204,0.00034997,31]
[327659706,1716288662824,-504.15972458,0.000354,31]
[327659707,1716288662869,-2008.23467374,0.00035411,30]
[327659708,1716288662942,-1156.51,0.00035477,30]
[327659709,1716288662966,-1156.51,0.00035477,31]
[327659710,1716288662989,-1156.51,0.00035477,32]
[327659711,1716288663013,-1156.51,0.00035477,33]
[327659712,1716288663036,-1156.51,0.00035477,34]
[327659713,1716288663059,-1156.51,0.00035477,35]
[327659714,1716288663082,-1156.51,0.00035477,36]
[327659715,1716288663105,-1156.70054254,0.00035477,37]
[327659716,1716288663334,-370.47,0.00036479,120]
[327659717,1716288663504,-161.58,0.00037399,120]
[327659718,1716288663703,-495.07,0.00038027,30]
[327659719,1716288663728,-150.0,0.00038032,120]
[327659720,1716288663762,-150.0,0.0003806,120]
[327659721,1716288663789,-150.0,0.00038284,120]
[327659722,1716288663817,-150.0,0.00038357,120]
[327659723,1716288663846,-1000.05571401,0.000385,30]
[327659724,1716288663873,-2833.18161811,0.000385,30]
[327659725,1716288663897,-5574.73425235,0.00038517,60]
[327659726,1716288663926,-2726.04664608,0.00038798,30]
[327659727,1716288663952,-458.61972417,0.000389,30]
[327659728,1716288663977,-887.32863311,0.000389,30]
[327659729,1716288664001,-1000.0,0.00038904,120]
[327659730,1716288664026,-5000.0,0.00039,30]
[327659731,1716288664050,-23882.16364394,0.00039,30]
[327659732,1716288664077,-150.0,0.00039465,120]
[327659733,1716288664100,-1930.0,0.000395,120]
[327659734,1716288664126,-191.0,0.00039726,31]
[327659735,1716288664151,-150.0,0.00039833,120]
[327659736,1716288664177,-3194.51231538,0.000399,30]
[327659737,1716288664204,-150.0,0.00039905,120]
[327659738,1716288664231,-150.0,0.00039987,120]
[327659739,1716288664258,-500.0,0.00039999,31]
[327659740,1716288664282,-503.89069623,0.00039999,31]
[327659741,1716288664306,-500.0,0.00039999,31]
[327659742,1716288664331,-500.0,0.00039999,31]
[327659743,1716288664355,-500.0,0.00039999,31]
[327659744,1716288664380,-500.0,0.00039999,31]
[327659745,1716288664404,-621.64039676,0.00039999,31]
[327659746,1716288664429,-530.48863092,0.00039999,31]
[327659747,1716288664453,-500.0,0.00039999,31]
[327659748,1716288664476,-215.95315553,0.00039999,31]
[327659749,1716288664500,-500.0,0.00039999,31]
[327659750,1716288664525,-500.0,0.00039999,31]
[327659751,1716288664548,-500.0,0.00039999,31]
[327659752,1716288664574,-441.63798468,0.00039999,31]
[327659753,1716288664597,-500.0,0.00039999,31]
[327659754,1716288664626,-500.0,0.00039999,31]
[327659755,1716288664649,-500.0,0.00039999,31]
[327659756,1716288664674,-500.0,0.00039999,31]
[327659757,1716288664699,-500.0,0.00039999,31]
[327659758,1716288664723,-500.0,0.00039999,31]
[327659759,1716288664749,-500.0,0.00039999,31]
[327659760,1716288664774,-500.0,0.00039999,31]
[327659761,1716288664799,-500.0,0.00039999,31]
[327659762,1716288664823,-500.0,0.00039999,31]
[327659763,1716288664851,-617.16092576,0.00039999,31]
[327659764,1716288664875,-500.0,0.00039999,31]
[327659765,1716288664899,-500.0,0.00039999,31]
[327659766,1716288664926,-500.0,0.00039999,31]
[327659767,1716288664950,-500.0,0.00039999,31]
[327659768,1716288664973,-500.0,0.00039999,31]
[327659769,1716288664997,-500.0,0.00039999,31]
[327659770,1716288665022,-500.0,0.00039999,31]
[327659771,1716288665050,-500.0,0.00039999,31]
[327659772,1716288665078,-500.0,0.00039999,31]
[327659773,1716288665105,-500.0,0.00039999,31]
[327659774,1716288665131,-527.08659078,0.00039999,31]
[327659775,1716288665155,-500.0,0.00039999,31]
[327659776,1716288665181,-500.0,0.00039999,31]
[327659777,1716288665205,-500.0,0.00039999,31]
[327659778,1716288665230,-500.0,0.00039999,31]
[327659779,1716288665257,-500.0,0.00039999,31]
[327659780,1716288665282,-500.0,0.00039999,31]
[327659781,1716288665307,-500.0,0.00039999,31]
[327659782,1716288665331,-500.0,0.00039999,31]
[327659783,1716288665355,-511.6085389,0.00039999,31]
[327659784,1716288665381,-500.0,0.00039999,31]
[327659785,1716288665405,-500.0,0.00039999,31]
[327659786,1716288665430,-500.0,0.00039999,31]
[327659787,1716288665454,-500.0,0.00039999,31]
[327659788,1716288665477,-500.0,0.00039999,31]
[327659789,1716288665501,-500.0,0.00039999,31]
[327659790,1716288665524,-500.0,0.00039999,31]
[327659791,1716288665551,-500.0,0.00039999,31]
[327659792,1716288665576,-500.0,0.00039999,31]
[327659793,1716288665600,-500.0,0.00039999,31]
[327659794,1716288665627,-500.0,0.00039999,31]
[327659795,1716288665651,-500.0,0.00039999,31]
[327659796,1716288665675,-500.0,0.00039999,31]
[327659797,1716288665701,-500.0,0.00039999,31]
[327659798,1716288665729,-500.0,0.00039999,31]
[327659799,1716288665755,-500.0,0.00039999,31]
[327659800,1716288665781,-500.0,0.00039999,31]
[327659801,1716288665805,-500.0,0.00039999,31]
[327659802,1716288665833,-500.0,0.00039999,31]
[327659803,1716288665865,-500.0,0.00039999,31]
[327659804,1716288665895,-500.0,0.00039999,31]
[327659805,1716288666254,-500.0,0.00039999,31]
[327659806,1716288666280,-500.0,0.00039999,31]
[327659807,1716288666307,-500.0,0.00039999,31]
[327659808,1716288666331,-500.0,0.00039999,31]
[327659809,1716288666355,-500.0,0.00039999,31]
[327659810,1716288666381,-500.0,0.00039999,31]
[327659811,1716288666405,-500.0,0.00039999,31]
[327659812,1716288666430,-500.0,0.00039999,31]
[327659813,1716288666456,-500.0,0.00039999,31]
[327659814,1716288666481,-427.07164571,0.00039999,31]
[327659815,1716288666507,-500.0,0.00039999,31]
[327659816,1716288666531,-500.0,0.00039999,31]
[327659817,1716288666556,-500.0,0.00039999,31]
[327659818,1716288666584,-500.0,0.00039999,31]
[327659819,1716288666610,-540.17356245,0.00039999,31]
[327659820,1716288666637,-500.0,0.00039999,31]
[327659821,1716288666662,-500.0,0.00039999,31]
[327659822,1716288666688,-500.0,0.00039999,31]
[327659823,1716288666712,-500.0,0.00039999,31]
[327659824,1716288666736,-500.0,0.00039999,31]
[327659825,1716288666761,-500.0,0.00039999,31]
[327659826,1716288666785,-500.0,0.00039999,31]
[327659827,1716288666808,-500.0,0.00039999,31]
[327659828,1716288666832,-500.0,0.00039999,31]
[327659829,1716288666862,-500.0,0.00039999,31]
[327659830,1716288666889,-500.0,0.00039999,31]
[327659831,1716288666913,-500.0,0.00039999,31]
[327659832,1716288666938,-500.0,0.00039999,31]
[327659833,1716288666962,-500.0,0.00039999,31]
[327659834,1716288666986,-500.0,0.00039999,31]
[327659835,1716288667008,-500.0,0.00039999,31]
[327659836,1716288667033,-196.98464333,0.00039999,31]
[327659837,1716288667056,-500.0,0.00039999,31]
[327659838,1716288667078,-500.0,0.00039999,31]
[327659839,1716288667102,-500.0,0.00039999,31]
[327659840,1716288667127,-500.0,0.00039999,31]
[327659841,1716288667150,-500.0,0.00039999,31]
[327659842,1716288667173,-500.0,0.00039999,31]
[327659843,1716288667201,-500.0,0.00039999,31]
[327659844,1716288667225,-521.7415841,0.00039999,31]
[327659845,1716288667248,-500.0,0.00039999,31]
[327659846,1716288667271,-500.0,0.00039999,31]
[327659847,1716288667295,-437.88925033,0.00039999,31]
[327659848,1716288667318,-500.0,0.00039999,31]
[327659849,1716288667342,-500.0,0.00039999,31]
[327659850,1716288667367,-433.18128117,0.00039999,31]
[327659851,1716288667395,-500.0,0.00039999,31]
[327659852,1716288667420,-500.0,0.00039999,31]
[327659853,1716288667443,-500.0,0.00039999,31]
[327659854,1716288667469,-500.0,0.00039999,31]
[327659855,1716288667493,-500.0,0.00039999,31]
[327659856,1716288667518,-500.0,0.00039999,31]
[327659857,1716288667543,-500.0,0.00039999,31]
[327659858,1716288667568,-500.0,0.00039999,31]
[327659859,1716288667593,-429.21667799,0.00039999,31]
[327659860,1716288667618,-500.0,0.00039999,31]
[327659861,1716288667646,-650.0,0.00039999,31]
[327659862,1716288667669,-500.0,0.00039999,31]
[327659863,1716288667692,-216.87,0.0004,120]
[327659864,1716288667715,-2301.57076875,0.0004,120]
[327659865,1716288667739,-815.78149358,0.0004,120]
[327659866,1716288667766,-1001.32930859,0.0004,120]
[327659867,1716288667790,-235.25702597,0.0004,30]
[327659868,1716288667817,-900.0,0.0004,41]
[327659869,1716288667841,-423.0,0.0004,120]
[327659870,1716288667871,-4934.12008648,0.0004,30]
[327659871,1716288667897,-500.0,0.0004,120]
[327659872,1716288667922,-217.25085068,0.0004,30]
[327659873,1716288667947,-500.0,0.0004,120]
[327659874,1716288667971,-326.0,0.0004,30]
[327659875,1716288667997,-240.41851159,0.0004,30]
[327659876,1716288668022,-349.73763421,0.0004,30]
[327659877,1716288668047,-290.00544424,0.0004,30]
[327659878,1716288668070,-236.1246361,0.0004,120]
[327659879,1716288668094,-4715.07006323,0.0004,120]